bitfinex/quotes_ETHUSD_20240603
["timestamp","ask_amount","ask_price","bid_price","bid_amount"]
[1717444606038,0.05352348,3774.5,3774.4,1.32126577]
[1717444606228,2.2127359,3774.5,3774.4,1.32126577]
[1717444607020,0.62614597,3774.5,3774.4,1.32126577]
[1717444607235,0.62614227,3774.5,3774.4,1.32126577]
[1717444608425,0.05352348,3774.5,3774.4,1.32126577]
[1717444609745,0.05352348,3774.5,3774.4,1.76493235]
[1717444609958,2.15923469,3774.8,3774.4,1.76493235]
[1717444610284,0.05349588,3774.5,3774.4,1.76493235]
[1717444610481,0.57259421,3774.6,3774.4,2.48493235]
[1717444610638,0.05349588,3774.5,3774.4,2.48493235]
[1717444611468,0.57258902,3774.7,3774.4,2.48493235]
[1717444611645,0.05353205,3774.5,3774.4,2.48493235]
[1717444611856,0.57258902,3774.7,3774.4,2.48493235]
[1717444612042,0.05354231,3774.5,3774.4,2.48493235]
[1717444612243,0.57258902,3774.7,3774.4,2.48493235]
[1717444612488,0.05354231,3774.5,3774.4,2.48493235]
[1717444612781,2.01861232,3774.7,3774.4,2.48493235]
[1717444612966,2.64909,3774.9,3774.4,2.48493235]
[1717444612967,0.05354231,3774.5,3774.4,2.48493235]
[1717444613172,1.58664048,3774.8,3774.4,2.48493235]
[1717444613373,0.05175051,3774.5,3774.4,2.48493235]
[1717444613542,1.58664048,3774.8,3774.4,1.76493235]
[1717444613743,0.05173267,3774.5,3774.4,2.48493235]
[1717444613991,1.58664048,3774.8,3774.4,2.48493235]
[1717444614658,0.05178986,3774.7,3774.4,2.48493235]
[1717444615057,1.58664048,3774.8,3774.4,2.48493235]
[1717444615264,0.05176269,3774.6,3774.4,2.48493235]
[1717444615472,1.58664048,3774.8,3774.5,0.24849323]
[1717444615794,1.58664048,3774.8,3774.6,1.32126577]
[1717444617268,1.58664048,3774.7,3774.6,1.32126577]
[1717444618906,1.58664048,3774.8,3774.6,1.32126577]
[1717444620408,4.23573048,3774.9,3774.6,2.289759]
[1717444620768,1.58664048,3774.8,3774.6,2.289759]
[1717444622466,1.58769621,3774.8,3774.6,2.289759]
[1717444622671,1.58769621,3774.8,3774.6,2.04126577]
[1717444622873,0.57258296,3774.7,3774.6,2.04126577]
[1717444623080,0.57258296,3774.7,3774.6,4.31856577]
[1717444623376,0.57257952,3774.8,3774.6,4.31856577]
[1717444623575,2.64909,3774.9,3774.6,4.31856577]
[1717444623827,1.58769621,3775.0,3774.8,0.72]
[1717444624123,8.70783576,3775.6,3774.6,4.26853912]
[1717444624124,1.58769621,3775.4,3774.9,1.32126577]
[1717444624328,5.01763,3775.3,3774.9,1.32126577]
[1717444624676,1.58769621,3775.1,3774.9,1.32126577]
[1717444624930,1.58769621,3775.0,3774.9,1.32126577]
[1717444625098,2.21213086,3775.0,3774.9,1.32126577]
[1717444625345,1.63964501,3775.0,3774.9,1.32126577]
[1717444625735,0.0519488,3775.0,3774.9,1.32126577]
[1717444627562,2.16024549,3775.2,3774.9,1.32126577]
[1717444627772,0.05192645,3775.0,3774.9,1.32126577]
[1717444627929,2.16024549,3775.2,3774.9,1.32126577]
[1717444628129,0.05195361,3775.1,3774.9,1.32126577]
[1717444628672,0.05195361,3775.1,3774.4,1.38082998]
[1717444628673,2.64921,3774.8,3774.4,1.38082998]
[1717444628968,0.05181923,3774.7,3774.5,1.32126577]
[1717444629186,2.64921,3774.8,3774.5,1.32126577]
[1717444629384,0.05179206,3774.6,3774.5,1.32126577]
[1717444629570,3.22181281,3774.8,3774.5,1.32126577]
[1717444629770,0.05180324,3774.6,3774.5,1.32126577]
[1717444629935,2.64921,3774.8,3774.5,1.32126577]
[1717444630140,0.05183041,3774.7,3774.5,1.32126577]
[1717444630375,2.64921,3774.8,3774.5,1.32126577]
[1717444630685,0.05139608,3774.6,3774.5,1.32126577]
[1717444630870,2.64921,3774.8,3774.5,1.32126577]
[1717444631072,0.05139608,3774.6,3774.5,1.32126577]
[1717444631242,2.64921,3774.8,3774.5,1.32126577]
[1717444631444,0.05139608,3774.6,3774.5,4.37416577]
[1717444631972,2.64893,3775.1,3774.5,4.37416577]
[1717444632160,2.64893,3775.1,3774.7,0.72]
[1717444632358,2.64893,3775.1,3774.8,1.32126577]
[1717444632682,2.64893,3775.1,3774.9,1.32126577]
[1717444633177,2.16025475,3775.0,3774.9,1.32126577]
[1717444635580,0.57255854,3775.0,3774.9,1.32126577]
[1717444635958,2.16025475,3775.0,3774.9,1.32126577]
[1717444636945,0.57255854,3775.0,3774.9,1.32126577]
[1717444637468,4.23662621,3775.1,3774.9,1.32126577]
[1717444637946,0.57255891,3775.0,3774.9,1.32126577]
[1717444639883,2.16025512,3775.0,3774.9,1.32126577]
[1717444640048,2.21180558,3775.0,3774.9,1.32126577]
[1717444641068,0.62410937,3775.0,3774.9,1.32126577]
[1717444641646,2.64911,3774.9,3774.3,2.4555]
[1717444641846,2.64922,3774.7,3774.4,1.32126577]
[1717444642267,0.0516648,3774.6,3774.4,1.32126577]
[1717444642461,2.21145006,3774.6,3774.4,1.32126577]
[1717444642951,2.64935,3774.5,3773.4,5.12006138]
[1717444643155,0.72,3774.3,3773.8,2.24198498]
[1717444643502,1.58716213,3774.1,3773.8,1.32126577]
[1717444643654,2.159822,3774.1,3773.8,1.32126577]
[1717444643853,3.25100182,3774.0,3773.2,3.80507882]
[1717444644090,2.64994,3773.7,3773.3,1.32126577]
[1717444644293,0.55,3773.6,3773.3,1.32126577]
[1717444644511,0.6011874,3773.6,3773.3,1.32126577]
[1717444644815,0.05096366,3773.5,3773.3,1.32126577]
[1717444645966,0.05096366,3773.5,3772.6,5.03744]
[1717444645967,2.3311,3773.3,3772.4,0.55659203]
[1717444646182,0.72,3773.0,3772.5,1.32126577]
[1717444646365,0.55,3772.9,3772.5,1.32126577]
[1717444646566,0.7702776,3772.9,3772.5,1.32126577]
[1717444646764,2.65055,3772.8,3772.5,1.32126577]
[1717444646995,2.70080041,3772.8,3772.5,1.32126577]
[1717444648410,2.65083,3772.5,3771.6,2.45110852]
[1717444648556,2.65083,3772.5,3771.7,1.32126577]
[1717444648753,0.04832339,3772.4,3771.7,1.32126577]
[1717444648958,0.04832339,3772.4,3771.9,0.72]
[1717444649160,0.04832339,3772.4,3772.0,1.32126577]
[1717444649681,3.20091,3772.3,3772.0,1.32126577]
[1717444649869,2.69903661,3772.3,3772.0,1.32126577]
[1717444650270,2.69903661,3772.3,3772.0,2.04126577]
[1717444650472,2.69903661,3772.3,3772.2,0.72]
[1717444650668,2.69903661,3772.3,3772.2,1.32126577]
[1717444654296,0.04812661,3772.3,3772.2,1.32126577]
[1717444654698,3.0,3772.6,3772.2,1.32126577]
[1717444654914,3.0,3772.6,3772.3,1.32126577]
[1717444655077,0.04820381,3772.5,3772.3,1.32126577]
[1717444655411,0.04820381,3772.5,3772.3,2.04126577]
[1717444655570,0.04820381,3772.5,3772.3,2.24539235]
[1717444655774,7.32,3773.0,3772.3,2.24539235]
[1717444656011,7.32,3773.0,3772.5,0.72]
[1717444656304,2.65034,3773.1,3772.6,1.32126577]
[1717444656507,9.97008,3773.5,3772.9,0.72]
[1717444656707,9.97008,3773.5,3773.2,0.72]
[1717444656907,9.97008,3773.5,3773.3,1.32126577]
[1717444657073,2.65008,3773.5,3773.3,1.32126577]
[1717444662015,2.6503,3773.2,3772.3,0.20412658]
[1717444662314,2.65044,3773.0,3772.4,1.32126577]
[1717444662701,0.55,3772.9,3772.4,1.32126577]
[1717444664020,2.65044,3773.0,3772.4,1.47380501]
[1717444667417,2.65044,3773.0,3772.4,1.32126577]
[1717444667617,2.65017,3773.4,3772.4,1.32126577]
[1717444667779,2.65017,3773.4,3772.5,3.05126577]
[1717444668795,2.65017,3773.4,3772.5,1.32126577]
[1717444669014,2.65017,3773.4,3772.6,0.40118923]
[1717444669178,7.32,3773.5,3772.7,1.32126577]
[1717444669179,2.65036,3773.1,3772.7,1.32126577]
[1717444669384,0.55,3773.0,3772.7,1.32126577]
[1717444670205,0.04804143,3772.9,3772.7,1.32126577]
[1717444676813,3.20055,3772.8,3771.9,2.2923]
[1717444677019,0.04717929,3772.7,3772.0,1.98862577]
[1717444679697,0.04717929,3772.7,3772.3,2.4624]
[1717444679931,0.04717929,3772.7,3772.4,1.32126577]
[1717444680232,0.04721482,3772.6,3772.4,1.32126577]
[1717444680531,7.32,3773.1,3772.4,1.69963235]
[1717444680688,0.04718763,3772.5,3772.4,1.69963235]
[1717444680892,7.32,3773.1,3772.4,1.69963235]
[1717444681113,0.04717645,3772.5,3772.4,1.69963235]
[1717444681311,7.32,3773.1,3772.4,1.69963235]
[1717444681511,7.32,3773.1,3772.6,1.32126577]
[1717444682310,7.32,3773.1,3772.6,3.05126577]
[1717444683221,2.65006,3773.5,3772.6,3.05126577]
[1717444685125,0.04746768,3773.4,3772.6,3.05126577]
[1717444685359,0.04746768,3773.4,3772.7,2.65061]
[1717444685523,0.04746768,3773.4,3772.8,1.93307367]
[1717444686124,0.04746768,3773.4,3773.1,0.721]
[1717444686323,0.04746768,3773.4,3773.2,1.32126577]
[1717444687806,0.04746768,3773.4,3773.3,0.721]
[1717444688074,2.64983,3773.9,3773.3,2.04226577]
[1717444688361,2.64983,3773.9,3773.5,0.721]
[1717444688566,2.64983,3773.9,3773.6,1.32126577]
[1717444696460,2.64957,3774.2,3773.6,1.32126577]
[1717444696660,3.55,3774.1,3773.6,1.32126577]
[1717444698138,2.64971,3774.0,3773.6,1.32126577]
[1717444700025,0.04777294,3773.9,3773.6,1.32126577]
[1717444704947,2.64984,3773.8,3772.9,2.65047]
[1717444705281,2.64984,3773.8,3773.0,1.32126577]
[1717444705282,0.59771193,3773.7,3773.0,1.32126577]
[1717444705493,1.17046634,3773.7,3773.0,1.32126577]
[1717444705634,2.75706793,3773.7,3773.0,1.32126577]
[1717444706741,2.65001,3773.6,3773.0,1.32126577]
[1717444707166,0.04799387,3773.5,3773.0,1.32126577]
[1717444708241,0.62078926,3773.5,3773.0,1.32126577]
[1717444708777,0.62078808,3773.5,3773.0,1.32126577]
[1717444708949,2.20720556,3773.5,3773.0,1.32126577]
[1717444709480,0.57279421,3773.4,3773.0,1.32126577]
[1717444709783,0.04791717,3773.3,3773.0,1.32126577]
[1717444710490,0.04787882,3773.2,3773.0,1.96274935]
[1717444710694,1.58645811,3773.6,3773.0,1.96274935]
[1717444710999,0.04796034,3773.5,3773.0,1.96274935]
[1717444711438,2.13645811,3773.7,3773.0,1.96274935]
[1717444711439,2.15922226,3773.6,3773.0,1.96274935]
[1717444711655,0.04794916,3773.5,3773.0,1.96274935]
[1717444711943,0.04794916,3773.5,3773.4,0.721]
[1717444712290,0.04794916,3773.5,3773.4,2.04226577]
[1717444712439,0.04794916,3773.5,3773.4,1.32126577]
[1717444712641,0.62071896,3773.5,3773.4,1.32126577]
[1717444712836,0.62071896,3773.5,3773.4,2.04226577]
[1717444713150,2.20717707,3773.5,3773.4,2.04226577]
[1717444713908,2.65038,3773.1,3772.2,0.82946054]
[1717444714181,2.65038,3773.1,3772.4,0.721]
[1717444714182,2.15903253,3773.0,3772.4,0.721]
[1717444714379,2.15903253,3773.0,3772.1,2.65098]
[1717444714380,1.58626273,3772.8,3772.1,2.65098]
[1717444714541,0.5727698,3772.9,3772.7,0.721]
[1717444714542,1.58626273,3772.9,3772.7,0.721]
[1717444714734,2.15914859,3772.8,3772.7,0.721]
[1717444714962,2.2066816,3772.8,3772.7,0.721]
[1717444715160,1.63379574,3772.8,3772.5,0.721]
[1717444715352,1.63379574,3772.8,3772.6,1.32126577]
[1717444715584,2.2066816,3772.8,3772.6,1.32126577]
[1717444715787,1.63379574,3772.8,3772.6,1.32126577]
[1717444715986,2.2066816,3772.8,3772.6,1.32126577]
[1717444716185,0.04753301,3772.8,3772.6,1.32126577]
[1717444718328,2.65062,3772.7,3771.9,2.381]
[1717444718532,3.20062,3772.7,3772.2,0.721]
[1717444718814,0.04727757,3772.6,3772.3,1.32126577]
[1717444720508,3.20076,3772.5,3772.3,1.32126577]
[1717444720925,0.04710144,3772.4,3772.3,1.32126577]
[1717444723757,0.04710144,3772.4,3772.3,3.76046577]
[1717444724104,12.97017,3773.4,3772.4,2.65076]
[1717444724425,0.04702337,3773.3,3773.0,0.721]
[1717444724733,0.04702337,3773.3,3773.1,1.32126577]
[1717444729931,0.04702337,3773.3,3773.2,0.721]
[1717444730120,0.59702337,3773.3,3773.2,0.721]
[1717444730751,0.59702337,3773.3,3773.1,1.32126577]
[1717444731548,2.65027,3773.2,3773.1,1.32126577]
[1717444731915,2.69757601,3773.2,3773.1,1.32126577]
[1717444732948,3.27042164,3773.2,3773.1,1.32126577]
[1717444733149,4.85672012,3773.2,3773.1,1.32126577]
[1717444733309,3.27042164,3773.2,3773.1,1.32126577]
[1717444733646,4.85672012,3773.2,3773.1,1.32126577]
[1717444733845,5.69751598,3773.2,3772.4,2.65076]
[1717444734004,0.57286313,3773.1,3772.5,1.32126577]
[1717444734205,4.57506796,3773.1,3772.5,1.32126577]
[1717444734404,0.61956164,3773.0,3772.5,1.32126577]
[1717444735145,0.61956157,3773.0,3772.5,1.32126577]
[1717444735532,2.2059664,3773.0,3772.5,1.32126577]
[1717444736217,0.04668449,3773.0,3772.5,1.32126577]
[1717444736419,2.65048,3772.9,3772.5,1.32126577]
[1717444736945,0.61962158,3772.8,3772.5,1.32126577]
[1717444739587,0.04672601,3772.8,3772.5,1.32126577]
[1717444740085,0.61964051,3772.8,3772.5,1.32126577]
[1717444740224,2.20607832,3772.8,3772.5,1.32126577]
[1717444740566,0.04672601,3772.8,3772.5,1.32126577]
[1717444741422,0.04672601,3772.8,3772.7,1.32126577]
[1717444741623,0.04672601,3772.8,3772.7,3.05226577]
[1717444741874,1.58643781,3773.2,3772.7,3.86341135]
[1717444742034,0.04653654,3772.8,3772.7,3.86341135]
[1717444742355,2.15926766,3773.2,3772.7,3.86341135]
[1717444742535,0.04653654,3772.8,3772.7,2.13241135]
[1717444742734,0.57282985,3773.1,3772.7,1.32126577]
[1717444742735,2.15926766,3773.1,3772.7,1.32126577]
[1717444742948,0.04659091,3773.0,3772.7,1.32126577]
[1717444743134,0.61944717,3773.0,3772.7,1.32126577]
[1717444743428,4.23691781,3772.9,3772.7,1.32126577]
[1717444743628,0.57285626,3772.8,3772.7,1.32126577]
[1717444744057,2.20585195,3772.8,3772.7,1.32126577]
[1717444744564,0.61941414,3772.8,3772.7,1.32126577]
[1717444745117,2.20584282,3772.8,3772.7,1.32126577]
[1717444745965,0.61941414,3772.8,3772.7,1.32126577]
[1717444746693,2.20584041,3772.8,3772.7,1.32126577]
[1717444747564,2.65069,3772.6,3771.7,4.94875]
[1717444747794,2.65069,3772.6,3771.8,2.88012225]
[1717444747973,0.04641272,3772.5,3771.8,1.95898685]
[1717444748484,1.63273796,3772.5,3771.8,1.95898685]
[1717444749062,2.20569782,3772.5,3772.4,1.731]
[1717444749374,0.61937258,3772.5,3772.4,5.43456577]
[1717444749569,0.04641272,3772.5,3772.4,4.24702235]
[1717444750399,0.57289005,3772.8,3772.4,4.24702235]
[1717444750551,8.90632524,3772.9,3772.5,1.32126577]
[1717444750756,1.58632524,3773.0,3772.5,1.32126577]
[1717444751013,1.58632524,3773.1,3772.5,1.32126577]
[1717444751301,1.58632524,3773.1,3772.6,0.68978624]
[1717444751463,1.58632524,3773.1,3772.7,1.32126577]
[1717444751666,1.58632524,3773.2,3772.7,1.32126577]
[1717444751898,1.58655578,3773.2,3772.7,1.32126577]
[1717444752053,2.15940309,3773.1,3772.7,1.32126577]
[1717444752249,24.63394,3773.4,3772.7,1.32126577]
[1717444752250,2.15940309,3773.0,3772.7,1.32126577]
[1717444752551,0.55,3773.3,3772.7,1.81494663]
[1717444752552,2.15940309,3772.9,3772.7,1.81494663]
[1717444752758,2.15940309,3772.8,3772.7,1.81494663]
[1717444752979,1.58655578,3772.9,3772.7,1.81494663]
[1717444753307,1.58648298,3772.9,3772.7,1.81494663]
[1717444754158,0.57288475,3772.8,3772.7,1.81494663]
[1717444754460,2.65028,3773.2,3772.7,1.81494663]
[1717444754655,1.586489,3772.8,3772.7,1.32126577]
[1717444754968,2.15939801,3772.8,3772.7,1.32126577]
[1717444755369,0.57290901,3772.8,3772.7,1.32126577]
[1717444756290,2.15939801,3772.8,3772.7,1.32126577]
[1717444756456,0.57290901,3772.8,3772.7,1.32126577]
[1717444758105,4.23691441,3772.9,3772.7,1.32126577]
[1717444758106,2.6505,3772.9,3772.7,1.32126577]
[1717444758301,2.15928375,3772.8,3772.7,1.32126577]
[1717444758599,0.57286934,3772.8,3772.7,1.32126577]
[1717444759377,2.15931063,3772.8,3772.7,1.32126577]
[1717444759902,0.57286934,3772.8,3772.7,1.32126577]
[1717444760056,0.61900306,3772.8,3772.7,1.32126577]
[1717444760257,2.65065,3772.7,3772.1,2.3977]
[1717444760589,0.61900306,3772.8,3772.2,1.32126577]
[1717444760590,2.65077,3772.5,3772.2,1.32126577]
[1717444760793,4.23718834,3772.5,3772.2,1.32126577]
[1717444760976,2.20548865,3772.4,3772.2,1.32126577]
[1717444761297,0.57293805,3772.3,3772.2,1.32126577]
[1717444761464,2.15935639,3772.3,3772.2,1.32126577]
[1717444761665,2.20533784,3772.3,3772.2,1.32126577]
[1717444761895,0.6189195,3772.3,3772.2,1.32126577]
[1717444762091,2.65104,3772.1,3771.5,2.4059]
[1717444762294,2.65104,3772.1,3771.6,1.32126577]
[1717444762591,4.23792598,3771.9,3771.0,0.55297369]
[1717444762794,1.16920076,3772.0,3771.5,1.32126577]
[1717444762795,4.23807598,3771.7,3771.5,1.32126577]
[1717444762990,0.57303948,3771.6,3771.5,1.32126577]
[1717444763155,0.61895315,3771.6,3771.5,1.32126577]
[1717444763578,2.20535761,3771.6,3771.5,1.32126577]
[1717444764892,0.04591367,3771.6,3771.5,1.32126577]
[1717444769765,2.65156,3771.4,3770.4,2.86347369]
[1717444769974,2.65156,3771.4,3770.5,1.32126577]
[1717444770195,0.04527216,3771.3,3770.5,1.32126577]
[1717444771580,0.04527216,3771.3,3770.7,1.32126577]
[1717444774701,0.04527216,3771.3,3770.9,1.32126577]
[1717444774870,0.04527216,3771.3,3771.1,1.32126577]
[1717444775072,7.32,3771.7,3771.1,1.32126577]
[1717444775598,7.32,3771.7,3771.5,1.32126577]
[1717444775798,2.65099,3772.2,3771.6,1.32126577]
[1717444775998,2.65099,3772.2,3771.7,1.32126577]
[1717444776401,2.65073,3772.6,3772.0,1.32126577]
[1717444777104,7.32,3772.7,3772.1,1.32126577]
[1717444777508,7.32,3772.7,3772.1,3.80696577]
[1717444777669,7.32,3772.7,3772.2,0.38069658]
[1717444777865,7.32,3772.7,3772.3,1.32126577]
[1717444778467,7.32,3772.7,3772.6,1.32126577]
[1717444779895,2.6504,3773.1,3772.6,1.32126577]
[1717444781185,2.2911,3772.8,3772.6,1.32126577]
[1717444781385,2.65062,3772.7,3771.6,2.4408]
[1717444781592,2.65062,3772.7,3771.7,1.32126577]
[1717444782003,2.65062,3772.7,3771.7,3.97256577]
[1717444782205,2.65062,3772.7,3772.1,1.32126577]
[1717444782626,0.04472006,3772.6,3772.1,1.32126577]
[1717444784257,2.65035,3773.1,3772.1,1.32126577]
[1717444784397,0.04402458,3772.5,3772.1,1.32126577]
[1717444784599,2.65035,3773.1,3772.1,1.32126577]
[1717444784909,0.04454162,3773.0,3772.1,1.32126577]
[1717444785951,0.04454162,3773.0,3772.5,1.32126577]
[1717444786437,8.90747669,3773.4,3772.9,1.32126577]
[1717444786438,7.32,3773.4,3772.9,1.32126577]
[1717444786639,1.58747669,3773.8,3773.0,3.74766577]
[1717444786825,0.57280455,3773.8,3773.1,0.37476658]
[1717444787024,2.64978,3773.9,3773.1,0.37476658]
[1717444787242,7.32,3774.0,3773.3,1.32126577]
[1717444787422,1.58747669,3774.2,3774.0,2.6497]
[1717444787601,1.58747669,3774.3,3774.0,2.6497]
[1717444787805,1.58747669,3774.9,3774.1,0.39709658]
[1717444787998,7.32,3775.3,3774.1,0.39709658]
[1717444787999,1.58747669,3775.0,3774.1,0.39709658]
[1717444788289,1.58747669,3775.0,3774.3,1.32126577]
[1717444788474,1.58747669,3775.1,3774.3,1.32126577]
[1717444788607,8.90747669,3775.3,3774.3,1.32126577]
[1717444788808,7.32,3775.3,3774.4,0.17183623]
[1717444789072,7.32,3775.3,3774.5,1.32126577]
[1717444789358,7.32,3775.6,3774.7,1.32126577]
[1717444789640,7.32,3775.6,3774.8,0.0529106]
[1717444789800,7.32,3775.6,3774.9,1.45868341]
[1717444790138,0.04310542,3775.5,3774.9,1.45868341]
[1717444790533,2.6484,3775.9,3774.9,1.45868341]
[1717444790721,0.04307826,3775.4,3774.9,1.45868341]
[1717444790924,2.6484,3775.9,3775.0,0.04944423]
[1717444791144,0.04344793,3775.3,3775.1,1.47207853]
[1717444791456,9.96803,3776.4,3775.2,1.32126577]
[1717444791652,9.96803,3776.4,3775.1,0.15081276]
[1717444791653,2.64803,3776.4,3775.4,1.32126577]
[1717444791812,1.58747669,3776.9,3775.7,1.32126577]
[1717444792015,4.23514669,3777.0,3775.7,1.32126577]
[1717444792324,2.64767,3777.0,3775.8,1.34837302]
[1717444792530,2.64767,3777.0,3775.9,0.1348373]
[1717444792857,2.64767,3777.0,3776.0,1.32126577]
[1717444793153,3.0,3776.9,3776.0,1.32126577]
[1717444793454,2.64779,3776.8,3776.0,1.32126577]
[1717444793750,3.0,3776.7,3776.0,1.32126577]
[1717444794310,3.564779,3776.7,3776.0,1.32126577]
[1717444794581,2.6479,3776.6,3774.1,3.0]
[1717444794714,3.564779,3776.7,3773.6,14.70807833]
[1717444794715,2.64821,3776.2,3775.2,1.32126577]
[1717444794910,0.55,3776.1,3775.2,1.32126577]
[1717444795112,4.94401,3776.0,3775.2,1.32126577]
[1717444795315,2.64852,3775.7,3775.2,1.32126577]
[1717444795866,2.64866,3775.5,3773.7,2.64989]
[1717444796066,3.0,3775.6,3773.7,2.64989]
[1717444796067,2.64885,3775.3,3774.1,1.32126577]
[1717444796275,2.64899,3775.1,3774.1,1.32126577]
[1717444796767,0.55,3775.0,3774.1,1.32126577]
[1717444796969,2.6491,3774.9,3774.1,1.32126577]
[1717444797475,0.55,3774.8,3774.1,1.32126577]
[1717444797665,2.64924,3774.7,3774.1,1.32126577]
[1717444798081,2.64937,3774.5,3774.1,1.32126577]
[1717444798232,0.55,3774.8,3774.1,1.32126577]
[1717444798456,7.32,3775.1,3774.1,1.32126577]
[1717444798457,2.64905,3775.0,3774.1,1.32126577]
[1717444798755,0.55,3774.9,3774.1,1.32126577]
[1717444799384,2.64916,3774.8,3774.1,1.32126577]
[1717444799998,7.32,3775.1,3774.5,1.32126577]
[1717444800153,2.64884,3775.3,3774.5,1.32126577]
[1717444800354,3.645724,3775.3,3774.5,1.32126577]
[1717444800854,2.64908,3774.9,3774.5,1.32126577]
[1717444802086,2.64921,3774.7,3774.5,1.32126577]
[1717444802898,2.64944,3774.4,3773.4,2.3301]
[1717444803113,0.55,3774.3,3773.5,1.55427577]
[1717444803627,7.32,3774.7,3773.9,1.32126577]
[1717444804090,7.32,3774.7,3774.5,0.0037]
[1717444804261,7.32,3774.7,3774.6,1.32126577]
[1717444809344,7.32,3775.5,3774.6,1.32126577]
[1717444809518,2.64861,3775.6,3774.7,1.71869935]
[1717444810550,2.64884,3775.3,3774.7,1.32126577]
[1717444810742,0.55,3775.2,3774.7,1.32126577]
[1717444810917,2.64896,3775.1,3774.7,1.32126577]
[1717444812407,1.58873284,3775.4,3774.7,1.32126577]
[1717444812757,1.58873284,3775.6,3774.8,1.32126577]
[1717444813069,1.58873284,3775.8,3774.9,0.57014958]
[1717444813203,1.58873284,3775.8,3775.0,1.32126577]
[1717444813204,4.23725284,3775.7,3775.0,1.32126577]
[1717444813420,2.64852,3775.7,3775.0,1.32126577]
[1717444814251,4.23725284,3775.7,3775.0,1.32126577]
[1717444814462,2.16125005,3775.6,3775.0,1.32126577]
[1717444814666,4.23725284,3775.7,3775.0,1.32126577]
[1717444814856,0.57251834,3775.6,3775.0,1.32126577]
[1717444815169,2.16125118,3775.6,3775.0,1.32126577]
[1717444815469,2.16125118,3775.5,3775.0,1.32126577]
[1717444815679,3.19872,3775.4,3775.0,1.32126577]
[1717444815839,4.78745284,3775.4,3775.0,1.32126577]
[1717444816031,4.23759284,3775.2,3775.0,1.32126577]
[1717444816230,1.12252769,3775.1,3775.0,1.32126577]
[1717444816450,0.57252769,3775.1,3775.0,1.32126577]
[1717444816658,2.16259932,3775.1,3775.0,1.32126577]
[1717444816968,1.59007163,3775.2,3775.0,1.32126577]
[1717444817166,1.59007163,3775.3,3775.0,1.32126577]
[1717444817333,1.59007163,3775.2,3775.0,1.32126577]
[1717444818377,0.61269739,3775.1,3775.0,1.32126577]
[1717444819166,0.04016735,3775.1,3775.0,1.32126577]
[1717444819749,2.20276735,3775.1,3775.0,1.32126577]
[1717444819969,1.09785646,3775.1,3775.0,1.32126577]
[1717444820154,2.649,3775.0,3774.1,2.64958]
[1717444820360,2.13969947,3774.9,3774.2,1.32126577]
[1717444820555,1.58969947,3774.8,3774.2,1.32126577]
[1717444820757,4.81146784,3774.7,3774.2,1.32126577]
[1717444820984,1.58969947,3774.5,3774.2,1.32126577]
[1717444821355,0.61281915,3774.4,3774.2,1.32126577]
[1717444821859,0.04017956,3774.4,3774.2,1.32126577]
[1717444824150,1.58956085,3774.5,3774.2,1.32126577]
[1717444824379,0.04008051,3774.3,3774.2,1.32126577]
[1717444824586,1.58956085,3774.5,3774.2,1.32126577]
[1717444824751,0.04008051,3774.3,3774.2,1.32126577]
[1717444825915,1.58956085,3774.5,3774.2,1.32126577]
[1717444826084,0.04008051,3774.3,3774.2,1.32126577]
[1717444826302,0.57263009,3774.5,3774.2,1.32126577]
[1717444826592,0.03991542,3774.3,3774.2,1.32496577]
[1717444826795,0.57263466,3774.5,3774.2,1.32496577]
[1717444826998,0.03991542,3774.3,3774.2,1.32496577]
[1717444827208,1.58967432,3774.6,3774.2,1.32496577]
[1717444827386,0.03991542,3774.3,3774.2,1.32496577]
[1717444827567,2.16230655,3774.6,3774.2,1.32496577]
[1717444827769,0.03991542,3774.3,3774.2,1.32496577]
[1717444827970,0.57263223,3774.4,3774.2,1.32496577]
[1717444828181,0.03991542,3774.3,3774.2,1.32496577]
[1717444828492,0.03991542,3774.3,3774.2,0.0037]
[1717444828493,2.17958974,3774.3,3774.2,0.0037]
[1717444828698,1.86167328,3774.3,3774.2,0.0037]
[1717444830257,1.28904105,3774.3,3774.2,0.0037]
[1717444830573,1.86179333,3774.3,3774.2,0.0037]
[1717444835733,11.89177333,3774.3,3774.2,0.0037]
[1717444835964,11.31902105,3774.3,3774.2,0.0037]
[1717444839601,8.66953105,3774.3,3774.2,0.0037]
[1717444839771,11.31902105,3774.3,3774.2,0.0037]
[1717444839974,13.96851105,3774.3,3774.2,0.0037]
[1717444840595,17.07461105,3774.3,3774.2,0.0037]
[1717444841199,2.65054,3772.9,3772.0,0.04612244]
[1717444841399,2.65064,3772.7,3772.1,1.32126577]
[1717444841805,0.03890546,3772.6,3772.1,1.32126577]
[1717444842513,2.65077,3772.5,3772.1,1.32126577]
[1717444842878,0.03861682,3772.4,3772.1,1.32126577]
[1717444845325,2.6509,3772.3,3772.1,1.32126577]
[1717444845684,0.03840668,3772.2,3772.1,1.32126577]
[1717444849395,0.58840668,3772.2,3772.1,1.32126577]
[1717444850236,2.65112,3772.0,3771.5,2.2963]
[1717444850438,0.03840668,3772.2,3771.6,1.55089577]
[1717444850756,7.32,3772.5,3772.0,1.731]
[1717444850924,7.32,3772.5,3772.1,1.32126577]
[1717444851535,0.03779683,3772.4,3772.1,1.32126577]
[1717444853019,0.03779683,3772.4,3772.1,1.69685235]
[1717444856661,0.55,3772.7,3772.1,1.69685235]
[1717444857024,0.03725539,3772.6,3772.1,1.69685235]
[1717444859325,0.03725539,3772.6,3772.3,2.3352]
[1717444859538,0.03725539,3772.6,3772.4,1.32126577]
[1717444859740,7.32,3773.0,3772.4,1.98956601]
[1717444859964,0.03720302,3772.5,3772.4,1.98956601]
[1717444860567,7.32,3773.0,3772.4,1.98956601]
[1717444861159,0.03732253,3772.9,3772.4,1.98956601]
[1717444864052,0.03732253,3772.9,3772.6,1.32126577]
[1717444864272,7.32,3773.5,3772.8,1.32126577]
[1717444864436,2.65005,3773.6,3772.8,1.32126577]
[1717444864769,0.03630612,3773.5,3772.8,1.32126577]
[1717444865436,0.03630612,3773.5,3773.3,1.731]
[1717444865668,7.32,3774.3,3773.4,5.04702]
[1717444865971,2.64946,3774.4,3773.5,0.80992858]
[1717444866277,0.03402476,3774.3,3773.7,1.731]
[1717444866560,7.32,3774.7,3773.8,1.32126577]
[1717444866765,0.03399759,3774.2,3773.8,1.32126577]
[1717444866933,7.32,3774.7,3773.8,1.32126577]
[1717444867257,7.32,3774.7,3773.9,0.57022258]
[1717444867468,0.03422716,3774.6,3774.0,1.32126577]
[1717444867929,0.03422716,3774.6,3773.1,2.65029]
[1717444867930,2.64936,3774.5,3773.1,2.65029]
[1717444868129,2.64936,3774.5,3773.5,1.32126577]